fUST/lending_fUST_20240410
["ID","MTS","AMOUNT","RATE_DAILY","PERIOD"]
[322080736,1712751040249,-500.0,0.00034799,5]
[322080737,1712751040257,-230.44,0.00034799,5]
[322080739,1712751040267,-212.03562234,0.00034799,5]
[322080963,1712751046057,-742.66,0.00034798,5]
[322080964,1712751046067,-500.0,0.00034799,5]
[322080965,1712751046076,-500.0,0.00034799,5]
[322080966,1712751046086,-176.284212,0.00034799,7]
[322080967,1712751046095,-500.0,0.00034799,7]
[322080968,1712751046104,-500.0,0.00034799,7]
[322080969,1712751046114,-500.0,0.00034799,5]
[322080970,1712751046123,-500.0,0.00034799,5]
[322080971,1712751046132,-500.0,0.00034799,5]
[322080972,1712751046141,-500.0,0.00034799,5]
[322080973,1712751046151,-742.66,0.00034799,5]
[322080974,1712751046160,-742.66,0.00034799,5]
[322080975,1712751046169,-96727.12521569,0.000348,2]
[322080976,1712751046179,-295.8912181,0.000348,4]
[322080977,1712751046190,-3090.19358259,0.000348,4]
[322080978,1712751046199,-1013.33930327,0.000348,4]
[322080979,1712751046208,-364.0,0.00034817,35]
[322080980,1712751046219,-364.0,0.00034817,35]
[322080981,1712751046229,-364.0,0.00034827,35]
[322080982,1712751046238,-364.0,0.00034827,35]
[322080983,1712751046248,-364.0,0.00034827,35]
[322080984,1712751046257,-368.88,0.00034827,35]
[322080985,1712751046266,-364.0,0.00034837,35]
[322080986,1712751046276,-364.0,0.00034837,35]
[322080987,1712751046285,-364.0,0.00034837,35]
[322080988,1712751046295,-364.0,0.00034837,35]
[322080989,1712751046304,-1883.9492987,0.00034839,2]
[322080990,1712751046312,-198.15931983,0.00034839,2]
[322080991,1712751046321,-408.20295126,0.00034873,4]
[322080992,1712751046331,-283.77571977,0.00034874,4]
[322080993,1712751046340,-261.58346478,0.00034877,4]
[322080994,1712751046349,-2386.90431991,0.00034877,4]
[322080995,1712751046359,-155.142272,0.00034889,4]
[322080996,1712751046368,-2305.86228637,0.00034889,4]
[322080997,1712751046377,-154.92253873,0.0003489,7]
[322080998,1712751046386,-500.0,0.00034896,5]
[322080999,1712751046394,-742.66,0.00034896,5]
[322081000,1712751046403,-500.0,0.00034897,5]
[322081001,1712751046412,-500.0,0.00034897,5]
[322081002,1712751046421,-500.0,0.00034897,5]
[322081003,1712751046430,-167.24695297,0.00034898,2]
[322081004,1712751046439,-173.67326272,0.00034898,4]
[322081005,1712751046448,-25712.42511023,0.00034898,4]
[322081006,1712751046457,-279.13008615,0.00034898,4]
[322081007,1712751046467,-473.12701109,0.00034898,4]
[322081008,1712751046477,-271.8195425,0.00034898,4]
[322081009,1712751046486,-3409.96012538,0.00034933,2]
[322081010,1712751046495,-500.0,0.00034938,5]
[322081011,1712751046504,-500.0,0.00034938,5]
[322081012,1712751046513,-500.0,0.00034938,5]
[322081013,1712751046522,-500.0,0.00034938,5]
[322081014,1712751046532,-500.0,0.00034938,5]
[322081015,1712751046541,-500.0,0.00034938,5]
[322081016,1712751046550,-742.66,0.00034938,5]
[322081017,1712751046559,-742.66,0.00034938,5]
[322081018,1712751046568,-742.66,0.00034938,5]
[322081019,1712751046577,-111860.16408291,0.00034939,2]
[322081020,1712751046585,-320.20971595,0.00034939,4]
[322081021,1712751046594,-398.0324456,0.00034939,4]
[322081022,1712751046604,-2578.56036859,0.00034939,4]
[322081023,1712751046613,-3715.47580609,0.00034939,4]
[322081024,1712751046622,-849.71651575,0.00034939,4]
[322081025,1712751046631,-1100.56259825,0.00034939,4]
[322081026,1712751046641,-500.0,0.00034975,5]
[322081027,1712751046650,-500.0,0.00034975,5]
[322081028,1712751046659,-500.0,0.00034975,5]
[322081029,1712751046668,-253.11750691,0.00034975,5]
[322081030,1712751046677,-500.0,0.00034975,5]
[322081031,1712751046686,-500.0,0.00034975,5]
[322081032,1712751046695,-500.0,0.00034977,5]
[322081033,1712751046704,-500.0,0.00034977,5]
[322081034,1712751046714,-500.0,0.00034977,5]
[322081035,1712751046723,-742.66,0.00034977,5]
[322081036,1712751046732,-265.76611257,0.00034978,7]
[322081037,1712751046741,-314.36819107,0.00034978,4]
[322081038,1712751046751,-155.21067345,0.00034978,4]
[322081039,1712751046760,-158.07204068,0.00034978,4]
[322081040,1712751046769,-192.96186117,0.00034978,4]
[322081041,1712751046778,-155.22054179,0.00034978,4]
[322081042,1712751046787,-211.34462556,0.00034978,4]
[322081043,1712751046796,-156.4911896,0.00034978,4]
[322081044,1712751046805,-174.0288036,0.00034978,4]
[322081045,1712751046815,-781.35657946,0.00034978,4]
[322081046,1712751046824,-7583.35945556,0.00034978,4]
[322081047,1712751046833,-409.50380383,0.00034978,4]
[322081048,1712751046842,-156.05243909,0.00034978,4]
[322081049,1712751046852,-1192.23032041,0.00034978,4]
[322081050,1712751046860,-675.75372352,0.00034978,4]
[322081051,1712751046869,-1497.37939823,0.00034978,4]
[322081052,1712751046878,-2209.08966571,0.00034978,4]
[322081053,1712751046888,-4264.7591535,0.00034986,4]
[322081054,1712751046897,-154.98535886,0.00034986,4]
[322081055,1712751046906,-266.60429888,0.00034986,4]
[322081056,1712751046915,-524.05304033,0.00034991,4]
[322081057,1712751046924,-553.0632,0.00034991,4]
[322081058,1712751046934,-300.71961147,0.00034991,4]
[322081059,1712751046943,-2091.81921779,0.00034991,4]
[322081060,1712751046952,-155.11007141,0.00034992,4]
[322081061,1712751046961,-500.0,0.00034999,5]
[322081062,1712751046971,-500.0,0.00034999,5]
[322081063,1712751046980,-500.0,0.00034999,5]
[322081064,1712751046989,-742.66,0.00034999,5]
[322081065,1712751046998,-9196.90637008,0.00035,2]
[322081069,1712752016171,-151.19836064,0.00027397,2]
[322081118,1712752235163,-150.0,0.00025297,2]
[322081121,1712752235174,-220.22760662,0.00027397,2]
[322081123,1712752235186,-302.90074336,0.00027397,2]
[322081125,1712752235197,-159.15476967,0.000299,2]
[322081128,1712752235229,-1211.3943755,0.0003,2]
[322081131,1712752235240,-17.32250485,0.00031,5]
[322081218,1712752238250,-386.67749515,0.00031,5]
[322081219,1712752238259,-159.15476966,0.00031578,2]
[322081220,1712752238269,-1211.3943755,0.000318,2]
[322081221,1712752238278,-187.202286,0.00032998,2]
[322081222,1712752238287,-166.666666,0.00033056,2]
[322081223,1712752238297,-454.099104,0.00033165,2]
[322081224,1712752238306,-93.62975565,0.00033255,2]
[322081225,1712752238360,-65.52501401,0.00033255,2]
[322081227,1712752238371,-209.03698599,0.000336,2]
[322081229,1712752238384,-962.61,0.000336,2]
[322081243,1712752238519,-39.74738951,0.000336,2]
[322081245,1712752238531,-166.666666,0.00033957,2]
[322081248,1712752238545,-154.9690062,0.0003433,4]
[322081251,1712752238556,-400.0,0.00034796,2]
[322081253,1712752238567,-313.0,0.00034796,2]
[322081255,1712752238580,-500.0,0.00034797,5]
[322081257,1712752238591,-500.0,0.00034797,5]
[322081259,1712752238602,-525.65,0.00034797,5]
[322081261,1712752238612,-500.0,0.00034797,5]
[322081263,1712752238624,-500.0,0.00034797,5]
[322081265,1712752238636,-285.42474477,0.00034798,4]
[322081266,1712752238649,-500.0,0.00034799,5]
[322081269,1712752238662,-500.0,0.00034799,5]
[322081270,1712752238673,-398.92,0.00034799,5]
[322081273,1712752238684,-1318.35353184,0.00034825,6]
[322081275,1712752238698,-14.18028121,0.00034825,6]
[322081277,1712752238717,-166.666666,0.00034858,2]
[322081279,1712752238728,-500.0,0.00034888,5]
[322081281,1712752238738,-281.72514304,0.00034931,2]
[322081283,1712752238752,-47.37268179,0.00034932,2]
[322081450,1712752240524,-234.35246125,0.00034932,2]
[322081452,1712752240535,-281.72514304,0.00034932,2]
[322081454,1712752240545,-281.72514304,0.00034933,2]
[322081456,1712752240556,-159.15476966,0.00034933,2]
[322081458,1712752240565,-500.0,0.00034938,5]
[322081460,1712752240576,-415.8364441,0.00034938,5]
[322081462,1712752240589,-84.1635559,0.00034938,5]
[322081464,1712752240599,-204.02978329,0.00034938,5]
[322081714,1712752243467,-295.97021671,0.00034938,5]
[322081715,1712752243477,-174.28,0.00034974,5]
[322081716,1712752243488,-500.0,0.00034999,5]
[322081717,1712752243499,-500.0,0.00034999,5]
[322081718,1712752243508,-287.33001459,0.00034999,5]
[322081719,1712752243517,-418.07185077,0.00034999,5]
[322081720,1712752243526,-500.0,0.00034999,5]
[322081721,1712752243536,-500.0,0.00034999,5]
[322081722,1712752243546,-504.69811811,0.00034999,5]
[322081723,1712752243556,-500.0,0.00034999,5]
[322081724,1712752243566,-500.0,0.00034999,5]
[322081725,1712752243577,-500.0,0.00034999,5]
[322081726,1712752243587,-517.95,0.00034999,5]
[322081727,1712752243597,-7743.73979982,0.00035,2]
[322081728,1712752243608,-5566.94771052,0.00035,2]
[322081729,1712752243632,-166.47327119,0.00035,2]
[322081730,1712752243644,-3874.53441545,0.00035,2]
[322081731,1712752243655,-3609.12457501,0.00035,2]
[322081732,1712752243664,-154.9690062,0.00035,4]
[322081733,1712752243674,-1057.0,0.00035,10]
[322081734,1712752243684,-1676.83380129,0.00035,30]
[322081735,1712752243693,-1013.33930327,0.00035,4]
[322081736,1712752243706,-3681.15019406,0.00035,4]
[322081737,1712752243716,-3358.57265894,0.00035,18]
[322081738,1712752243726,-123.54360732,0.00035,4]
[322081787,1712752254752,7671.0,0.000241,2]
[322081791,1712752942578,5450.25461672,0.000261,3]
[322081803,1712753237711,248.21917029,0.00024,2]
[322081824,1712753371225,-521.64046095,0.00025597,2]
[322081825,1712753371246,-1493.8410274,0.00025697,2]
[322081826,1712753371266,-1484.62215418,0.00025698,2]
[322081947,1712753433942,-386.01217285,0.00025698,2]
[322081949,1712753433954,-4754.51570009,0.00025698,2]
[322081951,1712753433964,-625.52488528,0.000257,2]
[322081953,1712753433973,-300.0,0.00026099,2]
[322081955,1712753433983,-3255.70238778,0.000261,2]
[322081957,1712753433993,-156.53326933,0.00026273,2]
[322081959,1712753434002,-620.27624426,0.00026985,2]
[322081961,1712753434012,-164.60794165,0.00027295,2]
[322081963,1712753434021,-300.0,0.00027396,2]
[322081965,1712753434032,-2299.9869379,0.00027397,4]
[322081967,1712753434041,-378.989953,0.00027397,2]
[322081969,1712753434050,-196.955659,0.00027397,2]
[322081971,1712753434059,-175.63167,0.00027545,2]
[322081974,1712753434069,-391.27535171,0.00028709,2]
[322081977,1712753434090,-28.72464829,0.00028709,2]
[322081979,1712753434099,-221.27535171,0.00029,2]
[322081982,1712753434114,-26.94381858,0.00029,2]
[322081984,1712753434123,-420.0,0.00029606,2]
[322081986,1712753434132,-1211.3943755,0.0003,2]
[322081988,1712753434141,-166.666666,0.00030839,2]
[322081990,1712753434151,-355.511,0.00031403,30]
[322081992,1712753434160,-587.0,0.0003158,2]
[322081994,1712753434169,-166.666666,0.0003168,2]
[322081996,1712753434178,-477.71747392,0.00031725,2]
[322082174,1712753438853,-545.708,0.00031725,2]
[322082421,1712753443341,-345.8,0.00031725,2]
[322082423,1712753443353,-339.78910027,0.00031725,2]
[322082426,1712753443368,-18805.65153341,0.00031725,2]
[322082427,1712753443377,-1211.3943755,0.000318,2]
[322082428,1712753443390,-587.0,0.00031994,2]
[322082430,1712753443399,-166.666666,0.00032521,2]
[322082432,1712753443409,-2007.0800752,0.00033164,4]
[322082434,1712753443418,-378.989953,0.00033165,2]
[322082436,1712753443428,-154.9690062,0.00033279,4]
[322082438,1712753443437,-924.63411097,0.00033284,4]
[322082440,1712753443447,-166.666666,0.00033361,2]
[322082442,1712753443456,-1211.3943755,0.000336,2]
[322082444,1712753443465,-166.666666,0.00034202,2]
[322082446,1712753443474,-502.31348865,0.0003452,5]
[322082448,1712753443484,-1561.65,0.00034681,4]
[322082450,1712753443493,-823.0,0.00034738,2]
[322082452,1712753443503,-338.07017168,0.000349,2]
[322082455,1712753443512,-10000.0,0.000349,120]
[322082457,1712753443522,-338.07017164,0.00034911,2]
[322082460,1712753443531,-338.07017164,0.00034922,2]
[322082462,1712753443540,-338.07017164,0.00034933,2]
[322082464,1712753443549,-338.07017164,0.00034944,2]
[322082466,1712753443558,-1143.75528738,0.00034997,2]
[322082468,1712753443567,-500.0,0.00034999,5]
[322082470,1712753443578,-166.4559432,0.00034999,5]
[322082472,1712753443588,-312.19784353,0.00034999,5]
[322082475,1712753443597,-502.30102706,0.00034999,5]
[322082478,1712753443607,-449.78371036,0.00034999,5]
[322082483,1712753443616,-500.79502647,0.00034999,2]
[322082488,1712753443625,-500.0,0.00034999,5]
[322082493,1712753443635,-500.0,0.00034999,5]
[322082497,1712753443644,-500.0,0.00034999,5]
[322082500,1712753443654,-500.0,0.00034999,5]
[322082503,1712753443665,-500.0,0.00034999,5]
[322082506,1712753443674,-500.0,0.00034999,5]
[322082508,1712753443684,-500.0,0.00034999,5]
[322082511,1712753443693,-500.0,0.00034999,5]
[322082514,1712753443703,-383.74151427,0.00034999,5]
[322082517,1712753443712,-500.0,0.00034999,5]
[322082520,1712753443722,-508.29644528,0.00034999,5]
[322082523,1712753443731,-500.0,0.00034999,5]
[322082526,1712753443740,-422.85577051,0.00034999,7]
[322082529,1712753443750,-356.66979468,0.00034999,7]
[322082532,1712753443759,-500.0,0.00034999,7]
[322082535,1712753443769,-500.0,0.00034999,7]
[322082538,1712753443779,-214.26630428,0.00034999,7]
[322082540,1712753443788,-417.88175755,0.00034999,7]
[322082543,1712753443798,-500.0,0.00034999,7]
[322082546,1712753443809,-500.0,0.00034999,7]
[322082549,1712753443819,-500.0,0.00034999,7]
[322082552,1712753443832,-500.0,0.00034999,7]
[322082555,1712753443842,-500.0,0.00034999,7]
[322082559,1712753443854,-500.0,0.00034999,7]
[322082561,1712753443863,-500.0,0.00034999,7]
[322082564,1712753443872,-500.0,0.00034999,7]
[322082566,1712753443882,-500.0,0.00034999,7]
[322082570,1712753443892,-500.0,0.00034999,7]
[322082572,1712753443901,-500.0,0.00034999,7]
[322082575,1712753443911,-500.0,0.00034999,7]
[322082579,1712753443921,-500.0,0.00034999,7]
[322082581,1712753443931,-500.0,0.00034999,7]
[322082585,1712753443941,-330.7733186,0.00034999,7]
[322082588,1712753443950,-1013.33930327,0.00035,4]
[322082591,1712753443960,-400.35183642,0.00035,4]
[322082594,1712753443969,-6857.88352877,0.00035,4]
[322082596,1712753443978,-668.97750328,0.00035,4]
[322082598,1712753443988,-154.98450155,0.00035,120]
[322082600,1712753443998,-2779.33453214,0.00035,2]
[322082602,1712753444010,-2978.08557842,0.00035,2]
[322082604,1712753444022,-14242.57988944,0.00035,2]
[322082606,1712753444031,-20000.0,0.00035,2]
[322082608,1712753444040,-20000.0,0.00035,2]
[322082610,1712753444053,-500.49290421,0.00035,2]
[322082612,1712753444062,-596.25390228,0.00035001,2]
[322082614,1712753444072,-150.5,0.00035003,35]
[322082616,1712753444085,-150.5,0.00035003,35]
[322082618,1712753444094,-150.5,0.00035013,35]
[322082620,1712753444103,-150.5,0.00035013,35]
[322082622,1712753444113,-150.5,0.00035013,35]
[322082624,1712753444122,-150.5,0.00035023,35]
[322082626,1712753444132,-150.5,0.00035023,35]
[322082628,1712753444141,-150.5,0.00035023,35]
[322082630,1712753444150,-232.63,0.00035023,35]
[322082632,1712753444160,-500.0,0.0003503,5]
[322082634,1712753444168,-500.0,0.0003503,5]
[322082636,1712753444178,-224.56154576,0.00035031,7]
[322082638,1712753444188,-278.68770396,0.00035031,4]
[322082640,1712753444197,-3873.31429465,0.00035031,4]
[322082643,1712753444207,-1857.43506988,0.00035031,30]
[322082644,1712753444216,-1568.28365758,0.00035031,4]
[322082646,1712753444225,-973.19772328,0.00035031,4]
[322082648,1712753444235,-500.0,0.00035031,5]
[322082650,1712753444244,-151.0,0.00035032,2]
[322082652,1712753444253,-151.0,0.00035032,2]
[322082654,1712753444263,-151.0,0.00035037,2]
[322082656,1712753444272,-151.0,0.00035037,2]
[322082658,1712753444281,-151.0,0.00035037,2]
[322082660,1712753444291,-500.0,0.00035037,5]
[322082662,1712753444300,-500.0,0.00035037,5]
[322082664,1712753444310,-500.0,0.00035037,5]
[322082666,1712753444319,-500.0,0.00035037,5]
[322082668,1712753444331,-500.0,0.00035037,5]
[322082670,1712753444341,-500.0,0.00035037,5]
[322082672,1712753444351,-500.0,0.00035037,5]
[322082674,1712753444361,-500.0,0.00035037,5]
[322082676,1712753444370,-500.0,0.00035037,5]
[322082679,1712753444380,-500.0,0.00035037,5]
[322082681,1712753444389,-500.0,0.00035037,5]
[322082682,1712753444399,-500.0,0.00035037,5]
[322082684,1712753444409,-500.0,0.00035037,5]
[322082686,1712753444419,-500.0,0.00035037,5]
[322082688,1712753444428,-500.0,0.00035037,5]
[322082690,1712753444437,-500.0,0.00035037,5]
[322082693,1712753444447,-500.0,0.00035037,5]
[322082694,1712753444456,-500.0,0.00035037,5]
[322082696,1712753444465,-500.0,0.00035037,5]
[322082698,1712753444474,-500.0,0.00035037,5]
[322082700,1712753444484,-500.0,0.00035037,5]
[322082702,1712753444493,-500.0,0.00035037,5]
[322082705,1712753444503,-500.0,0.00035037,5]
[322082707,1712753444514,-500.0,0.00035037,5]
[322082709,1712753444523,-412.85444657,0.00035037,5]
[322082711,1712753444532,-171.61907663,0.00035039,4]
[322082713,1712753444541,-500.0,0.00035039,5]
[322082715,1712753444551,-500.0,0.0003504,5]
[322082717,1712753444561,-500.0,0.0003504,5]
[322082718,1712753444570,-500.0,0.0003504,5]
[322082720,1712753444587,-500.0,0.0003504,5]
[322082722,1712753444597,-500.0,0.0003504,5]
[322082724,1712753444607,-500.0,0.0003504,5]
[322082726,1712753444616,-500.0,0.0003504,5]
[322082728,1712753444626,-500.0,0.0003504,5]
[322082730,1712753444635,-500.0,0.0003504,5]
[322082732,1712753444645,-500.0,0.0003504,5]
[322082734,1712753444655,-500.0,0.0003504,5]
[322082736,1712753444665,-500.0,0.0003504,5]
[322082738,1712753444675,-500.0,0.0003504,5]
[322082740,1712753444687,-500.0,0.0003504,5]
[322082742,1712753444696,-500.0,0.0003504,5]
[322082744,1712753444705,-640.09866337,0.0003504,5]
[322082746,1712753444715,-500.0,0.0003504,5]
[322082748,1712753444724,-560.029,0.0003504,5]
[322082750,1712753444734,-765.48838053,0.00035042,4]
[322082752,1712753444744,-29780.29437011,0.00035043,2]
[322082753,1712753444756,-26149.78767135,0.00035043,2]
[322082754,1712753444765,-152.85848344,0.00035043,7]
[322082755,1712753444775,-500.0,0.00035043,7]
[322082756,1712753444784,-500.0,0.00035043,7]
[322082757,1712753444793,-500.0,0.00035043,7]
[322082758,1712753444802,-500.0,0.00035043,7]
[322082759,1712753444812,-570.33142226,0.00035043,7]
[322082760,1712753444821,-500.0,0.00035043,7]
[322082761,1712753444839,-500.0,0.00035043,7]
[322082762,1712753444848,-153.68,0.00035043,2]
[322082763,1712753444857,-166.666666,0.00035043,2]
[322082764,1712753444867,-313.75634211,0.00035043,4]
[322082765,1712753444878,-3577.91941485,0.00035043,60]
[322082768,1712753444917,-500.0,0.00034999,5]
[322082770,1712753444927,-500.0,0.0003503,5]
[322082772,1712753444937,-12649.10312699,0.00035043,60]
[322082778,1712753444991,-1698.33381726,0.00035043,60]
[322082780,1712753445003,-3404.97744352,0.00035043,60]
[322082782,1712753445015,-683.73233506,0.00035043,60]
[322082784,1712753445028,-1393.22925558,0.00035043,60]
[322082787,1712753445044,-2964.97048427,0.00035043,60]
[322082789,1712753445057,-3299.99328901,0.00035043,60]
[322082791,1712753445069,-341.09633702,0.00035043,60]
[322082793,1712753445091,-9519.99999522,0.00035043,60]
[322082796,1712753445103,-1654931.8547903,0.00035043,60]
[322082798,1712753445115,-3030.0,0.00035043,60]
[322082800,1712753445126,-1296.97173047,0.00035043,60]
[322082803,1712753445141,-8234.67467929,0.00035043,60]
[322082805,1712753445153,-2941.44641783,0.00035043,60]
[322082807,1712753445164,-469.03299102,0.00035043,60]
[322083130,1712753446647,-500.0,0.00035039,5]
[322083133,1712753446656,-277.03921209,0.00035042,4]
[322083136,1712753446666,-936.36329074,0.00035042,4]
[322083138,1712753446676,-5091.59749717,0.00035043,60]
[322083141,1712753446687,-6775.0,0.00035043,60]
[322083144,1712753446698,-3479.0,0.00035043,60]
[322083147,1712753446710,-2797.35,0.00035043,60]
[322083151,1712753446726,-1402.76287323,0.00035043,60]
[322085899,1712753635171,11080.78082971,0.0002,2]
[322085900,1712753635195,4874.29210771,0.0002,2]
[322085926,1712753883373,11781.90445259,0.0002,2]
[322085927,1712753917836,3470.70800831,0.0002,2]
[322085928,1712753944042,818.22379114,0.000255,4]
[322085931,1712754008013,18731.52159214,0.000255,7]
[322085946,1712754229815,610.7922533,0.00024225,2]
[322085947,1712754289856,14918.49973839,0.00024225,2]
[322086008,1712754408103,-58071.15908192,0.00035058,60]
[322086009,1712754408130,-1529398.24298522,0.00035058,60]
[322086010,1712754408160,-1353602.8319066,0.00035058,60]
[322086011,1712754408186,-1158927.76602626,0.00035058,60]
[322086014,1712754432041,-504136.64321299,0.00035058,60]
[322086015,1712754432069,-3495863.35678701,0.00035058,60]
[322086105,1712754601972,2092.8334783,0.0002343,2]
[322086227,1712754633773,-1493.8410274,0.00024212,2]
[322086229,1712754633782,-601.61804631,0.00024212,2]
[322086231,1712754633791,-282.39298336,0.00024213,2]
[322086233,1712754633800,-154.9690062,0.00024214,2]
[322086235,1712754633810,-300.0,0.00024224,2]
[322086237,1712754633820,-300.0,0.00024224,2]
[322086239,1712754633829,-4051.33380983,0.00024225,2]
[322086291,1712754635428,154.9690062,0.0002343,2]
[322086320,1712754638749,-1303.80850463,0.00024225,2]
[322086321,1712754638761,-2254.22790739,0.00024225,2]
[322086322,1712754638771,-8654.29738376,0.00024272,2]
[322086425,1712754640766,-2290.22811925,0.00024272,2]
[322086466,1712754649013,14603.82846475,0.0002343,2]
[322086467,1712754653448,237.78737328,0.0002343,2]
[322086468,1712754673656,3255.70238778,0.0002343,2]
[322086469,1712754817831,157.70364,0.00023958,2]
[322086470,1712754836376,175.63167,0.00022788,2]
[322086471,1712754852702,302.263644,0.000254,12]
[322086472,1712754864224,160.1081193,0.00023233,2]
[322086473,1712754988444,764.70601555,0.00023946,2]
[322086474,1712754989178,24900.0,0.0002305,2]
[322086475,1712755054276,10000.0,0.00024,2]
[322086476,1712755069227,3632.7,0.00024,2]
[322086477,1712755081404,724.08728976,0.00023971,2]
[322086480,1712755328580,669.11776358,0.00023908,2]
[322086481,1712755328936,5567.94409063,0.00023999,2]
[322086482,1712755330140,154.9690062,0.00023999,2]
[322086483,1712755330594,154.9690062,0.00023999,2]
[322086484,1712755331069,1964.55296593,0.00023999,2]
[322086485,1712755336216,5784.90920352,0.00023999,2]
[322086486,1712755343404,263.50565858,0.00023999,2]
[322086487,1712755347145,378.4250555,0.00022172,2]
[322086488,1712755355065,156.60500254,0.00023999,2]
[322086489,1712755356291,1493.8410274,0.00023999,2]
[322086490,1712755359199,407.79245075,0.00023999,2]
[322086491,1712755365264,1617.59849486,0.00023999,2]
[322086492,1712755373898,282.39298336,0.00023999,2]
[322086493,1712755376430,868.5993041,0.00023999,2]
[322086506,1712755434605,687.372286,0.00023999,2]
[322086507,1712755438135,947.33933489,0.00023999,2]
[322086508,1712755439979,3719.10840679,0.00023999,2]
[322086509,1712755441982,601.61804631,0.00023999,2]
[322086510,1712755444474,154.9690062,0.00023999,2]
[322086511,1712755460731,3274.2953031,0.00023067,2]
[322086523,1712755609087,585.47804315,0.00023971,2]
[322086524,1712755610327,1493.8410274,0.00023999,2]
[322086530,1712755623301,407.79245075,0.00023999,2]
[322086531,1712755629915,282.39298336,0.00023999,2]
[322086535,1712755648514,377.93430375,0.000219,2]
[322086536,1712755695578,601.61804631,0.00023999,2]
[322086538,1712755752333,300.0,0.000254,12]
[322086539,1712755754430,277.12178816,0.00023999,2]
[322086540,1712755762513,154.95351395,0.00023999,2]
[322086541,1712755790276,1486.14046783,0.00023999,2]
[322086542,1712755794534,691.0645901,0.00023419,2]
[322086543,1712755796084,1854.027435,0.00023999,2]
[322086544,1712755802225,524.8635464,0.00023999,2]
[322086545,1712755803582,282.81584181,0.00023999,2]
[322086546,1712755803754,154.95351395,0.00023999,2]
[322086547,1712755804857,887.0189653,0.00023999,2]
[322086548,1712755822804,174.856418,0.00022791,2]
[322086621,1712755832744,-765.92654399,0.00024,5]
[322086623,1712755832753,-327.15056696,0.00024021,2]
[322086625,1712755832763,-5567.94409063,0.00024031,2]
[322086627,1712755832773,-300.0,0.00024059,2]
[322086628,1712755832782,-300.0,0.00024059,2]
[322086630,1712755832792,-2622.12977337,0.0002406,2]
[322086632,1712755832801,-29610.15910601,0.00024069,2]
[322086633,1712755832810,-1129.6054062,0.00024071,2]
[322086635,1712755832819,-1493.8410274,0.00024657,2]
[322086638,1712755832829,-280.0,0.00024658,2]
[322086640,1712755832838,-601.61804631,0.00024999,2]
[322086642,1712755832847,-1772.7449932,0.00025,2]
[322086644,1712755832861,-153.21588608,0.00025349,2]
[322086646,1712755832870,-625.51107306,0.00025433,2]
[322086648,1712755832880,-309.75219824,0.000255,2]
[322086650,1712755832889,-5948.01476655,0.000255,7]
[322086652,1712755832898,-2299.9869379,0.000255,4]
[322086654,1712755832907,-389.75630827,0.00025678,2]
[322086656,1712755832916,-156.53326933,0.00025889,2]
[322086658,1712755832925,-420.0,0.00026089,2]
[322086660,1712755832934,-579.2698318,0.00026272,2]
[322086662,1712755832943,-420.0,0.00026465,2]
[322086664,1712755832952,-620.27555365,0.00026704,2]
[322086666,1712755832961,-377.93430375,0.000269,2]
[322086668,1712755832970,-229.000621,0.00027397,2]
[322086670,1712755832979,-181.783658,0.00027397,2]
[322086672,1712755832989,-164.112294,0.00027397,2]
[322086674,1712755832997,-236.1573941,0.00027397,2]
[322086676,1712755833007,-408.689193,0.00027397,2]
[322086678,1712755833016,-166.666666,0.00027397,2]
[322086680,1712755833025,-341.090957,0.00027397,2]
[322086682,1712755833034,-216.3740643,0.00027498,2]
[322086684,1712755833043,-304.69239321,0.00027498,2]
[322086686,1712755833053,-490.39175371,0.00027498,2]
[322086688,1712755833062,-3244.69602523,0.00027498,2]